{"text_format":"1","workbook":"xlsx","n_sheets":8,"sheets":["Instructions","Project Info","Outdoor Data","HBC Data","Indoor Data","Template","Refrigerant Charge Calculation","DATA"],"not_rendered":{"charts":0,"images":9,"macros":1,"external_links":0,"defined_names":22,"comments":0,"pivot_tables":0},"unopened":[],"bounds":{"document_bytes":16777216,"sheet_cells":100000,"rows_first":2000,"rows_last":500,"rows_between":2000,"halvings":0,"cell_chars":16384,"cell_head_chars":4096},"cells_cut":0,"cells_raw":0,"read":"whole","date_system":"1900"}

{"sheet":"Instructions","index":0,"n_rows":114,"n_cols":2,"rows_kept":114,"cut":false,"hidden":false,"merged":[[87,1,87,11],[112,1,112,11],[113,1,113,11],[6,0,6,12],[12,1,12,11],[29,1,29,11],[71,1,71,11],[10,1,10,11],[11,1,11,11],[31,1,32,11],[49,1,50,11]]}
[]
[]
[]
[]
[]
[]
["Instructions"]
[]
[]
[null,"1."]
[null,"Complete project information page. Be sure to mark all pre commissioning checks that apply."]
[null,"    If any pre commissioning checks are not met, or system evacuation recommendations are not "]
[null,"met, Please list these anomalies in the \"Notes\" section at the bottom of the page. "]
[]
[]
[]
[]
[]
[]
[]
[]
[]
[]
[]
[]
[]
[]
[]
[null,"2."]
[null,"   Fill out outdoor, and centralized controller information. "]
[null,"2a."]
[null,"Select outdoor unit model. NOTE: Be sure to select or enter the correct OC and OS model numbers, incorrect information can affect warranty qualification."]
[]
[]
[]
[]
[]
[]
[]
[]
[]
[]
[]
[]
[]
[]
[]
[]
[null,"2b."]
[null,"Attach M-Tool data by clicking the \"Attach M-Tool Data\" icon. Once File Explorer is opened, find correct data, and open it. This will attach file to worksheet."]
[]
[]
[]
[]
[]
[]
[]
[]
[]
[]
[]
[]
[]
[]
[]
[]
[]
[]
[]
[]
[]
[null,"Data that is attached correctly will look like this:"]
[]
[]
[]
[]
[]
[]
[]
[]
[]
[]
[]
[]
[]
[]
[null,"3. "]
[null,"Add correct amount of indoor units using buttons at top of page, fill out indoor unit information. "]
[]
[]
[]
[]
[]
[]
[]
[]
[]
[]
[]
[]
[]
[]
[]
[]
[]
[]
[]
[]
[]
[]
[]
[null,"4."]
[null,"Fill out final page with ALL relevant fields with accurate, \"as built\" measurements. Total trim "]
[null,"charge will be displayed at the bottom of the worksheet. "]

{"sheet":"Project Info","index":1,"n_rows":60,"n_cols":12,"rows_kept":60,"cut":false,"hidden":false,"merged":[[9,1,9,3],[9,4,9,11],[49,1,49,9],[49,10,49,11],[57,10,57,11],[31,1,31,3],[31,4,31,11],[56,1,56,4],[57,1,57,4],[56,7,56,9],[57,7,57,9],[56,5,56,6],[57,5,57,6],[42,10,42,11],[43,10,43,11],[44,10,44,11],[45,10,45,11],[46,10,46,11],[37,10,37,11],[38,10,38,11],[59,0,59,12],[39,10,39,11],[40,10,40,11],[41,10,41,11],[42,1,42,9],[43,1,43,9],[45,1,45,9],[46,1,46,9],[37,1,37,9],[38,1,38,9],[39,1,39,9],[40,1,40,9],[61,1,70,11],[51,0,51,12],[53,1,53,4],[54,1,54,4],[55,1,55,4],[53,5,53,6],[54,5,54,6],[55,5,55,6],[53,7,53,9],[54,7,54,9],[55,7,55,9],[53,10,53,11],[54,10,54,11],[55,10,55,11],[56,10,56,11],[41,1,41,9],[11,1,11,3],[11,4,11,11],[36,1,36,9],[36,10,36,11],[19,1,19,3],[19,4,19,11],[12,1,12,3],[12,4,12,11],[13,1,13,3],[13,4,13,11],[14,1,14,3],[14,4,14,11],[25,1,25,3],[25,4,25,11],[6,0,6,12],[5,11,5,12],[22,4,22,11],[10,1,10,3],[10,4,10,11],[20,1,20,3],[20,4,20,11],[21,1,21,3],[21,4,21,11],[22,1,22,3],[15,1,15,3],[15,4,15,11],[18,1,18,3],[18,4,18,11],[8,1,8,3],[8,4,8,11],[47,1,47,9],[48,1,48,9],[47,10,47,11],[48,10,48,11],[26,1,26,3],[26,4,26,11],[27,1,27,3],[27,4,27,11],[33,1,33,11],[30,1,30,3],[30,4,30,11],[28,1,28,3],[28,4,28,11],[29,1,29,3],[29,4,29,11],[44,1,44,9]]}
[]
[]
[]
[]
[]
[null,null,null,null,null,null,null,null,null,null,"Date:","26/03/2020"]
["MESCA City Multi Commissioning Report"]
[]
[null,"Project:",null,null,"City Multi"]
[null,"Project ID:"]
[null,"City/Provence:"]
[null,"Address:"]
[null,"Postal Code:"]
[null,"Site Contact:"]
[null,"Phone:"]
[null,"Commissioining Date:"]
[]
[]
[null,"Distributor:"]
[null,"Address:"]
[null,"Postal Code:"]
[null,"Phone:"]
[null,"Technician:"]
[]
[]
[null,"Mechanical Contractor:"]
[null,"Address:"]
[null,"Postal Code:"]
[null,"Phone:"]
[null,"Technician:"]
[null,"Contactor Certification Level:"]
[null,"Registration #:"]
[]
[null,"Pre-Commissioning Checklist "]
[]
[]
[null,"Refrigerant piping pressure tested:"]
[null,"Triple sweep evacuation performed:"]
[null,"Refrigerant lines insulated and supported:"]
[null,"Twinning kit installed correctly:"]
[null,"Condensers installed with service and ventilation clearance as per manual:"]
[null,"Units installed level and adequately secured:"]
[null,"Communication wiring completed using 16AWG shielded cable:"]
[null,"Condensate drain piping completed with proper lengths and slope:"]
[null,"Condenser communication wires marked clear and disconnected from condenser:"]
[null,"Correct power supply verified:"]
[null,"Condenser power applied 12 hours before commissioning:"]
[null,"Base pan heater field installed:"]
[null,"Outdoor Unit(s) installed above local snow grade:"]
[null,"Refrigerant piping lengths and sizes comply with installation manual requirements:"]
[]
["Evacuation "]
[]
[null,"Recommended Test Pressure:",null,null,null,"600 PSI",null,"Recommended Vacuum Period:",null,null,"1 HOUR"]
[null,"Measured Test Pressure:",null,null,null,null,null,"Recorded Vacuum Period:"]
[null,"Recommended Test Period:",null,null,null,"24 HOURS",null,"Recommended Vacuum:",null,null,"200 MICRONS"]
[null,"Recorded Test Period:",null,null,null,null,null,"Measured Vacuum:"]
[null,"Performed By:",null,null,null,null,null,"Measured Vacuum Rise:"]
[]
["Notes"]

{"sheet":"Outdoor Data","index":2,"n_rows":74,"n_cols":12,"rows_kept":74,"cut":false,"hidden":false,"merged":[[14,9,15,10],[16,9,17,10],[18,9,19,10],[62,9,63,10],[62,7,63,8],[67,10,67,11],[25,9,26,9],[43,8,44,8],[22,9,23,10],[25,10,26,10],[24,9,24,10],[27,9,28,9],[29,9,30,9],[37,9,38,9],[27,10,28,10],[29,10,30,10],[25,7,26,7],[39,7,40,7],[41,7,42,7],[41,10,42,10],[45,9,46,9],[43,9,44,9],[43,10,44,10],[58,9,59,10],[74,10,74,11],[71,8,72,9],[72,10,72,11],[73,10,73,11],[71,10,71,11],[65,0,65,12],[62,2,63,3],[69,10,69,11],[70,10,70,11],[62,4,63,5],[71,1,72,2],[73,1,74,2],[69,3,70,3],[71,3,72,3],[73,3,74,3],[69,6,70,7],[67,1,68,2],[68,10,68,11],[62,6,63,6],[67,6,68,7],[67,8,68,9],[71,5,72,5],[43,6,44,6],[58,4,59,5],[45,6,46,6],[45,7,46,7],[10,9,11,10],[12,9,13,10],[69,1,70,2],[31,8,32,8],[31,9,32,9],[31,10,32,10],[69,5,70,5],[33,2,34,4],[33,5,34,5],[33,6,34,6],[33,7,34,7],[33,8,34,8],[33,9,34,9],[33,10,34,10],[35,2,36,4],[35,5,36,5],[35,6,36,6],[35,7,36,7],[39,6,40,6],[39,9,40,9],[54,0,54,12],[43,2,44,4],[39,5,40,5],[43,5,44,5],[22,7,23,8],[5,11,5,12],[6,0,6,12],[10,11,11,11],[12,11,13,11],[8,2,8,3],[8,6,8,8],[9,6,9,8],[10,6,10,8],[37,6,38,6],[8,4,9,5],[10,4,11,5],[12,4,13,5],[14,4,15,5],[16,4,17,5],[18,4,19,5],[24,2,24,4],[31,2,32,4],[35,8,36,8],[35,9,36,9],[35,10,36,10],[37,5,38,5],[8,9,9,10],[71,6,72,7],[69,8,70,9],[73,6,74,7],[73,8,74,9],[73,4,74,4],[73,5,74,5],[69,4,70,4],[71,4,72,4],[58,6,59,6],[58,7,58,8],[59,7,59,8],[24,5,24,6],[14,6,15,8],[25,5,26,5],[27,6,28,6],[29,6,30,6],[24,7,24,8],[22,2,23,4],[15,2,15,3],[16,2,16,3],[25,6,26,6],[17,2,17,3],[25,2,26,4],[18,2,18,3],[16,6,17,8],[18,6,19,8],[25,8,26,8],[29,5,30,5],[29,7,30,7],[22,5,23,6],[45,8,46,8],[9,2,9,3],[10,2,10,3],[11,2,11,3],[11,6,11,8],[12,6,12,8],[37,2,38,4],[37,10,38,10],[27,8,28,8],[29,8,30,8],[37,8,38,8],[37,7,38,7],[31,5,32,5],[31,6,32,6],[31,7,32,7],[27,7,28,7],[27,5,28,5],[13,6,13,8],[12,2,12,3],[13,2,13,3],[14,2,14,3],[19,2,19,3],[27,2,28,4],[29,2,30,4],[60,2,61,3],[60,4,61,5],[60,6,61,6],[60,7,61,8],[60,9,61,10],[41,5,42,5],[41,6,42,6],[39,8,40,8],[41,8,42,8],[41,9,42,9],[48,7,49,8],[51,7,52,8],[50,7,50,8],[43,7,44,7],[58,2,59,3],[56,6,57,6],[56,2,57,5],[56,7,57,10],[45,2,46,4],[45,5,46,5],[39,2,40,4],[41,2,42,4],[45,10,46,10],[39,10,40,10]]}
[]
[]
[]
[]
[]
[null,null,null,null,null,null,null,null,null,null,null,{"$f":"'Project Info'!E9","v":"City Multi"}]
["Outdoor Unit Data"]
[]
[null,null,"Model Name",null,null,null,"Compressor Model Name"]
[null,null,"(OC):",null,null,null,"(OC):"]
[null,null,"Model Name",null,null,null,"Compressor Model Name"]
[null,null,"(OS1):",null,null,null,"(OS1):"]
[null,null,"Model Name",null,null,null,"Compressor Model Name"]
[null,null,"(OS2):",null,null,null,"(OS2):"]
[null,null,"Serial #",null,null,null,"Compressor Serial # (OC):"]
[null,null,"(OC):"]
[null,null,"Serial #",null,null,null,"Compressor Serial # (OS1):"]
[null,null,"(OS1):"]
[null,null,"Serial #",null,null,null,"Compressor Serial # (OS2):"]
[null,null,"(OS2):"]
[]
[]
[null,null,"Measurements",null,null,{"$f":"E9","v":0},null,{"$f":"E11","v":0},null,{"$f":"E13","v":0}]
[]
[null,null,"M-Net Address:",null,null,51,null,52,null,52]
[null,null,"Voltage L1-L2:",null,null,null,"V",null,"V",null,"V"]
[]
[null,null,"Voltage L2-L3:",null,null,null,"V",null,"V",null,"V"]
[]
[null,null,"Voltage L1-L3:",null,null,null,"V",null,"V",null,"V"]
[]
[null,null,"Voltage L1-Ground:",null,null,null,"V",null,"V",null,"V"]
[]
[null,null,"Voltage L2-Ground:",null,null,null,"V",null,"V",null,"V"]
[]
[null,null,"Voltage L3-Ground:",null,null,null,"V",null,"V",null,"V"]
[]
[null,null,"Amp Draw L1:",null,null,null,"A",null,"A",null,"A"]
[]
[null,null,"Amp Draw L2:",null,null,null,"A",null,"A",null,"A"]
[]
[null,null,"Amp Draw L3:",null,null,null,"A",null,"A",null,"A"]
[]
[null,null,"Voltage TB7:",null,null,null,"VDC",null,"VDC",null,"VDC"]
[]
[null,null,"Voltage TB3:",null,null,null,"VDC",null,"VDC","scd","VDC"]
[]
[]
[]
[]
[null,null,null,null,null,null,null,"Place Here:"]
[]
[]
[]
["Branch Control Boxes"]
[]
[null,null,null,null,null,null,"M-NET"]
[]
[null,null,"Main BC        Model Name:",null,null,null,null,"Main BC"]
[null,null,null,null,null,null,null,"Serial #:"]
[null,null,"Sub BC          Model Name:",null,null,null,null,"Sub BC       Serial #:"]
[]
[null,null,"Sub BC          Model Name:",null,null,null,null,"Sub BC       Serial #:"]
[]
[]
["Centralized Control Details"]
[]
[null,"Device",null,null,null,null,"IP",null,"Gateway",null,"Subnet"]
[null,null,null,"M-NET","Model ","Serial",null,null,null,null,"Instance"]
[null,"Central Control:",null,"000"]
[]
[null,"Central Control:",null,"000"]
[]
[null,"Central Control:",null,"000"]

{"sheet":"HBC Data","index":3,"n_rows":66,"n_cols":11,"rows_kept":66,"cut":false,"hidden":false,"merged":[[19,2,19,3],[19,4,19,5],[5,10,5,11],[6,0,6,11],[18,2,18,3],[18,4,18,5],[18,6,18,9],[19,6,19,9],[9,4,9,5],[10,4,10,5],[13,4,13,5],[8,2,8,9],[9,2,9,3],[9,6,9,9],[10,2,10,3],[10,6,10,9],[11,2,11,3],[12,2,12,3],[13,2,13,3],[11,6,11,9],[12,6,12,9],[13,6,13,9],[11,4,11,5],[12,4,12,5],[53,2,53,3],[53,4,53,5],[53,6,53,9],[36,2,36,3],[36,4,36,5],[36,6,36,9],[50,2,50,3],[50,4,50,5],[50,6,50,9],[51,2,51,3],[51,4,51,5],[37,2,37,3],[37,4,37,5],[38,2,38,3],[38,4,38,5],[41,3,41,4],[45,3,45,9],[43,3,43,4],[43,5,43,6],[43,7,43,9],[44,3,44,4],[44,5,44,6],[44,7,44,9],[41,5,41,6],[20,6,20,9],[21,6,21,9],[22,6,22,9],[25,2,25,3],[25,4,25,5],[25,6,25,9],[21,2,21,3],[21,4,21,5],[22,2,22,3],[22,4,22,5],[20,2,20,3],[20,4,20,5],[29,6,29,9],[26,2,26,3],[26,4,26,5],[32,2,32,3],[32,4,32,5],[27,2,27,3],[27,4,27,5],[31,2,31,3],[31,4,31,5],[28,2,28,3],[28,4,28,5],[30,2,30,3],[52,6,52,9],[33,2,33,3],[33,4,33,5],[34,4,34,5],[35,4,35,5],[33,6,33,9],[32,6,32,9],[31,6,31,9],[30,6,30,9],[41,7,41,9],[42,3,42,4],[42,5,42,6],[42,7,42,9],[65,1,66,5],[82,0,86,11],[14,2,14,3],[14,4,14,5],[14,6,14,9],[15,2,15,3],[15,4,15,5],[15,6,15,9],[27,6,27,9],[26,6,26,9],[16,2,16,9],[51,6,51,9],[38,6,38,9],[37,6,37,9],[35,6,35,9],[34,6,34,9],[28,6,28,9],[34,2,34,3],[35,2,35,3],[52,2,52,3],[52,4,52,5],[30,4,30,5],[29,2,29,3],[29,4,29,5]]}
[]
[]
[]
[]
[]
[null,null,null,null,null,null,null,null,null,null,{"$f":"'Project Info'!E9","v":"City Multi"}]
["HBC Unit Data"]
[]
[null,null,"Outdoor unit"]
[null,null,"Item check list",null,"Y/N",null,"Comments"]
[null,null,"Install location satisfies requirements"]
[null,null,"Refrigerant pipework within parameters"]
[null,null,"Y Piece, twinning kit installed, if required Y piece must be horizontal to ground"]
[null,null,"Power supply meets requirements"]
[null,null,"System pressure tested and additional refrigerant calculated & added"]
[null,null,"SW 5 - 1 ON if central controlled"]
[]
[null,null,"HBC"]
[null,null,"Item Check List:",null,"Y/N",null,"Comments"]
[null,null,"Install location meets requirements"]
[null,null,"HBC drain pan supported"]
[null,null,"Ensure FCU index load sharing across ports"]
[null,null,"HBC balance pipe installed, if MAIN HBC used & added to refrigerant charge calculation, 5/8 pipe size (Note 1)"]
[]
[null,null,"Water Side"]
[null,null,"Item Check List:",null,"Y/N",null,"Comments"]
[null,null,"Expansion vessel installed and sized correctly, one per main HBC "]
[null,null,"Expansion vessel at same height as HBC"]
[null,null,"Pipe work to FCU within parameters"]
[null,null,"Pipe work correct size for FCU model"]
[null,null,"Isolation valves flow & return to FCU and sub HBC"]
[null,null,"Drain cock installed at HBC at each port for air purge"]
[null,null,"Drain cock near FCU & sub HBC for maintenance"]
[null,null,"AAV fitted to each FCU leg at highest point"]
[null,null,"Glycol added if environment dictates"]
[null,null,"Support pipework close to FCU’s no more than 1m"]
[null,null,"Drain pipe, should not be reduced, adequate fall. 1/100"]
[null,null,"Water quality satisfies requirements, report recorded (Note 3)"]
[]
[]
[null,null,"Expansion vessel sizing"]
[null,null,null,"Internal pipe diameter (mm)",null,"Total length of pipe (m)",null,"Size/type of pipe"]
[null,null,"Volume of pipe type 1"]
[null,null,"Volume of pipe type 2"]
[null,null,"Volume of pipe type 3"]
[]
[]
[]
[]
[null,null,"Commissioning"]
[null,null,"Water pipework pressure tested to 3 Bar"]
[null,null,"Water working pressure @ 1.0~1.6bar"]
[null,null,"Debris & air purge complete"]
[null,null,"System address set"]
[]
[]
[]
[]
[]
[]
[]
[]
[]
[]
[]
[null,"Refer to the HVRF data-book water quality.  The table below shows the water standards for fill water quality recommended by BSRIA.  It is recommended to test the water regularly to check the chemical and bacteria levels."]

{"sheet":"Indoor Data","index":4,"n_rows":21,"n_cols":12,"rows_kept":21,"cut":false,"hidden":false,"merged":[[17,1,17,3],[17,4,17,5],[18,4,18,5],[14,4,14,5],[14,7,14,11],[15,7,20,11],[15,4,15,5],[15,1,15,3],[16,1,16,3],[16,4,16,5],[19,1,19,3],[19,4,19,5],[20,1,20,3],[20,4,20,5],[14,1,14,3],[5,11,5,12],[7,0,7,12],[10,7,10,9],[10,10,10,11],[12,1,12,4],[10,1,11,2],[10,3,11,5],[12,7,12,9],[12,10,12,11],[11,7,11,9],[11,10,11,11]]}
[]
[]
[]
[]
[]
[null,null,null,null,null,null,null,null,null,null,null,{"$f":"'Project Info'!E9","v":"City Multi"}]
[]
["Indoor Unit Data"]
[]
[]
[null,"Indoor Unit Location:",null,"FAN COIL 1",null,null,null,"L1-L2 Volts:"]
[null,null,null,null,null,null,null,"TB15 Volts:"]
[null,"Service Clearance As Per Manual:",null,null,null,"(Y)",null,"TB5 Volts:"]
[]
[null,"Model Name:",null,null," PKFY-WL06NLMU-E",null,null,"Function Settings Used"]
[null,"Serial #:"]
[null,"Indoor Address:"]
[null,"Controller Installed"]
[null,"Controller Address:"]
[null,"Local BMS Controller:"]
[null,"Port Setting (R2 Only):"]

{"sheet":"Template","index":5,"n_rows":0,"n_cols":0,"rows_kept":0,"cut":false,"hidden":true,"merged":[[57,1,58,2],[57,3,58,3],[57,4,58,4],[57,5,58,5],[57,6,58,7],[57,8,58,9],[57,10,57,11],[58,10,58,11],[59,1,60,2],[59,3,60,3],[59,4,60,4],[59,5,60,5],[59,6,60,7],[59,8,60,9],[59,10,59,11],[60,10,60,11],[53,1,54,2],[53,6,54,7],[53,8,54,9],[53,10,53,11],[54,10,54,11],[55,1,56,2],[55,3,56,3],[55,4,56,4],[55,5,56,5],[55,6,56,7],[55,8,56,9],[55,10,55,11],[56,10,56,11],[48,2,49,3],[48,4,49,5],[48,6,49,6],[48,7,49,8],[48,9,49,10],[51,0,51,12],[42,0,42,12],[44,2,45,3],[44,4,45,5],[44,7,45,8],[44,9,45,10],[46,2,47,3],[46,4,47,5],[46,6,47,6],[46,7,47,8],[46,9,47,10],[37,10,38,10],[39,2,40,4],[39,5,40,5],[39,6,40,6],[39,7,40,7],[39,8,40,8],[39,9,40,9],[39,10,40,10],[37,2,38,4],[37,5,38,5],[37,6,38,6],[37,7,38,7],[37,8,38,8],[37,9,38,9],[33,10,34,10],[35,2,36,4],[35,5,36,5],[35,6,36,6],[35,7,36,7],[35,8,36,8],[35,9,36,9],[35,10,36,10],[33,2,34,4],[33,5,34,5],[33,6,34,6],[33,7,34,7],[33,8,34,8],[33,9,34,9],[29,10,30,10],[31,2,32,4],[31,5,32,5],[31,6,32,6],[31,7,32,7],[31,8,32,8],[31,9,32,9],[31,10,32,10],[29,2,30,4],[29,5,30,5],[29,6,30,6],[29,7,30,7],[29,8,30,8],[29,9,30,9],[25,10,26,10],[27,2,28,4],[27,5,28,5],[27,6,28,6],[27,7,28,7],[27,8,28,8],[27,9,28,9],[27,10,28,10],[24,2,24,4],[24,5,24,6],[24,7,24,8],[24,9,24,10],[25,2,26,4],[25,5,26,5],[25,6,26,6],[25,7,26,7],[25,8,26,8],[25,9,26,9],[18,2,19,3],[18,4,19,5],[18,6,19,8],[18,9,19,9],[18,10,19,10],[22,2,23,4],[22,5,23,6],[22,7,23,8],[22,9,23,10],[14,2,15,3],[14,4,15,5],[14,6,15,8],[14,9,15,9],[14,10,15,10],[16,2,17,3],[16,4,17,5],[16,6,17,8],[16,9,17,9],[16,10,17,10],[5,11,5,12],[6,0,6,12],[8,2,9,3],[8,4,9,5],[8,6,9,8],[8,9,9,9],[8,10,9,10],[12,2,13,3],[12,4,13,5],[12,6,13,8],[12,9,13,9],[12,10,13,10],[12,11,13,11],[10,2,11,3],[10,4,11,5],[10,6,11,8],[10,9,11,9],[10,10,11,10],[10,11,11,11]]}

{"sheet":"Refrigerant Charge Calculation","index":6,"n_rows":119,"n_cols":12,"rows_kept":119,"cut":false,"hidden":false,"merged":[[120,2,131,10],[118,1,118,11],[96,3,102,6],[96,7,102,9],[83,9,83,10],[84,9,84,10],[72,4,73,6],[72,7,73,8],[74,4,75,6],[74,7,75,8],[78,2,79,10],[82,9,82,10],[86,7,86,8],[86,9,86,10],[80,5,80,6],[80,7,80,8],[80,9,80,10],[80,2,80,4],[81,2,81,4],[82,2,82,4],[83,2,83,4],[84,2,84,4],[81,5,81,6],[82,5,82,6],[59,4,60,5],[61,4,62,5],[66,6,67,6],[69,5,71,7],[46,2,47,4],[46,5,47,6],[46,7,47,8],[46,9,47,10],[48,2,49,4],[48,5,49,6],[48,7,49,8],[48,9,49,10],[53,5,54,7],[41,2,42,4],[41,5,42,6],[41,7,42,8],[41,9,42,10],[43,2,44,4],[43,5,44,6],[43,7,44,8],[43,9,44,10],[56,5,57,7],[27,2,27,3],[27,4,27,6],[27,7,27,8],[27,9,27,10],[30,5,31,7],[33,5,34,7],[36,4,37,5],[36,6,37,8],[38,4,39,5],[38,6,39,8],[5,11,5,12],[6,3,6,9],[12,5,13,7],[15,2,15,10],[16,2,16,3],[16,4,16,6],[16,7,16,8],[16,9,16,10],[17,2,17,3],[17,4,17,6],[17,7,17,8],[17,9,17,10],[8,3,10,9],[83,5,83,6],[84,5,84,6],[81,7,81,8],[82,7,82,8],[83,7,83,8],[84,7,84,8],[81,9,81,10],[18,2,18,3],[18,4,18,6],[18,7,18,8],[18,9,18,10],[19,2,19,3],[19,4,19,6],[19,7,19,8],[19,9,19,10],[20,2,20,3],[20,4,20,6],[20,7,20,8],[20,9,20,10],[22,2,22,3],[22,4,22,6],[22,7,22,8],[22,9,22,10],[26,9,26,10],[106,2,114,10],[21,2,21,3],[21,4,21,6],[21,7,21,8],[21,9,21,10],[59,6,60,7],[59,8,60,8],[61,6,62,7],[61,8,62,8],[23,2,23,3],[23,4,23,6],[23,7,23,8],[23,9,23,10],[24,2,24,3],[24,4,24,6],[24,7,24,8],[24,9,24,10],[25,2,25,3],[25,4,25,6],[25,7,25,8],[25,9,25,10],[26,2,26,3],[26,4,26,6],[26,7,26,8]]}
[]
[]
[]
[]
[]
[null,null,null,null,null,null,null,null,null,null,null,{"$f":"'Project Info'!E9","v":"City Multi"}]
[null,null,null,"Additional Refrigerant Charge"]
[]
[null,null,null,"*IMPORTANT: Always refer to most up to date service/installation manual for refrigerant charge calculation.*"]
[]
[]
[]
[null,null,null,null,null,"Field Piping Charge"]
[]
[]
[null,null,"Liquid Piping Lengths"]
[null,null,"Liquid Pipe Size",null,"Total Liquid Pipe Length(ft)",null,null,"Multiplier(Oz/Ft)",null,"Charge(Oz)"]
[null,null,"1-1/8\"(High Pres)",null,null,null,null,null,null,{"$f":"E18*H18","v":0}]
[null,null,"7/8\"(High Pres)",null,null,null,null,null,null,0]
[null,null,"3/4\"(High Pres)",null,null,null,null,null,null,0]
[null,null,"5/8\"(High Pres)",null,null,null,null,null,null,0]
[null,null,"3/4\"(Liquid)",null,null,null,null,null,null,0]
[null,null,"5/8\"(Liquid)",null,null,null,null,null,null,{"$f":"E23*H23","v":0}]
[null,null,"1/2\"(Liquid)",null,null,null,null,null,null,{"$f":"E24*H24","v":0}]
[null,null,"3/8\"(Liquid)",null,null,null,null,null,null,0]
[null,null,"1/4\"(Liquid)",null,null,null,null,null,null,0]
[]
[null,null,null,null,null,null,null,"Total(Lbs)",null,{"$f":"SUM(J18:K26)/16","v":0}]
[]
[]
[null,null,null,null,null,"+"]
[]
[]
[null,null,null,null,null,"BC Charge\n(R2 System Only)"]
[]
[]
[null,null,null,null,"Outdoor Capacity",null,"Obligitory Charge(Lbs)"]
[]
[]
[]
[null,null,null,null,null,null,"+"]
[null,null,"Main BC Model",null,null,"Oz/Unit",null,"Quantity",null,"Charge(Lbs)"]
[]
[null,null,null,null,null,null,null,1,null,{"$f":"F44*H44/16","v":0}]
[]
[null,null,null,null,null,null,"+"]
[null,null,"Sub BC Model",null,null,"Oz/Unit",null,"Quantity",null,"Charge(Lbs)"]
[]
[null,null,null,null,null,null,null,null,null,{"$f":"F49*H49/16","v":0}]
[]
[]
[]
[]
[null,null,null,null,null,"+"]
[]
[]
[null,null,null,null,null,"Outdoor Charge"]
[]
[]
[null,null,null,null,"Total\nOutdoor Capacity",null,"Obligitory Charge(Oz)",null,"Lbs"]
[]
[null,null,null,null,null,null,null,null,{"$f":"G62/16","v":0}]
[]
[]
[]
[]
[null,null,null,null,null,null,"+"]
[]
[]
[null,null,null,null,null,"Indoor Charge"]
[]
[]
[null,null,null,null,"Total Combined Indoor Capactiy",null,null,"Charge(Oz)"]
[]
[]
[]
[]
[]
[null,null,"Special Indoor Charge\n(Only used if stated in manual)"]
[]
[null,null,"Indoor Model",null,null,"Oz/Unit",null,"Quantity",null,"Charge(Oz)"]
[null,null,null,null,null,null,null,null,null,{"$f":"F82*H82","v":0}]
[null,null,null,null,null,null,null,null,null,{"$f":"F83*H83","v":0}]
[null,null,null,null,null,null,null,null,null,{"$f":"F84*H84","v":0}]
[null,null,null,null,null,null,null,null,null,{"$f":"F85*H85","v":0}]
[]
[null,null,null,null,null,null,null,"Total(Lbs)",null,{"$f":"SUM(J82:K85,H75)/16","v":0}]
[]
[]
[]
[]
[null,null,null,null,null,null,"="]
[]
[]
[]
[]
[null,null,null,"TOTAL FIELD CHARGE(LBS)*",null,null,null,{"$f":"SUM(J28,G39,J87,I62,J44,J49)","v":0}]
[]
[]
[]
[]
[]
[]
[]
[]
[]
[null,null,"*IMPORTANT: Total refrigerant charge must comply with Maximum Refrigerant Charge table outlined in outdoor unit service/installation manual."]
[]
[]
[]
[]
[]
[]
[]
[]
[]
[]
[]
[null,"Notes"]

{"sheet":"DATA","index":7,"n_rows":331,"n_cols":25,"rows_kept":331,"cut":false,"hidden":false,"merged":[]}
["Address","address",null,null,null,"000",null,"outdoor/indoor",null,null,null,null,null,"P72",null,null,null,"0",null,null,"EP216",null,null,null,"Y/N"]
[1,51,null,null,null,201,null,"ITMREF_0",null,null,null,null,null,"P96",null,null,null,"1",null,null,"EP240"]
[2,52,"certification",null,"(Y)",202,null,"CAHV-P500YB-HPB",null,null,null,null,null,"P120/P144",null,null,null,"2",null,null,"P72",null,null,null,"Yes"]
[3,53,"None ",null,"(N)",203,null,"CAHV-P500YB-HPB-BS",null,null,"Indoor",null,null,"P168(Twin)",null,"P36","0","3","P72","P72","P96",null,null,null,"No"]
[4,54,"Registered Level",null,null,204,null,"PCFY-P125VKM-ER1",null,null,"PCFY-P125VKM-ER1",null,null,null,null,"P48","1","4","P96","P96","P120"]
[5,55,"Diamond Level",null,null,205,null,"PCFY-P15NKMU-ER1-TH",null,null,"PCFY-P15NKMU-ER1-TH",null,null,null,null,"P60","2","5","P120","P120","P144"]
[6,56,"Centralized ",null,null,206,null,"PCFY-P24NKMU-ER1-TH",null,null,"PCFY-P24NKMU-ER1-TH",null,null,null,null,null,null,"6","P144","P144","P168"]
[7,57,"AE-200A",null,null,207,null,"PCFY-P30NKMU-ER1-TH",null,null,"PCFY-P30NKMU-ER1-TH",null,null,null,null,"BC BOX",null,"7","P168(Twin)","P144(Twin)","P144(Twin)"]
[8,58,"AE-50A",null,null,208,null,"PCFY-P36NKMU-ER1-TH",null,null,"PCFY-P36NKMU-ER1-TH",null,null,"PAC-YT53CRAU",null,"CMB-P105NU-G",null,"8","P192(Twin)","P168(Twin)","P168(Twin)",null,"P72"]
[9,59,"EW-50A",null,null,209,null,"PEFY-P06NMAU-E3",null,null,"PEFY-P06NMAU-E3",null,null,"PAR-40MAA-J",null,"CMB-P105NU-G1",null,"9","P216(Twin)","P192(Twin)","P192(Twin)",null,"P96"]
[10,60,"TC-24V",null,null,210,null,"PEFY-P06NMSU-ER2-TH",null,null,"PEFY-P06NMSU-ER2-TH",null,null,"PAR-CT01MAU-SB",null,"CMB-P106NU-G",null,"10","P240(Twin)","P216(Twin)","P216(Twin)",null,"P120"]
[11,61,"AG150",null,null,211,null,"PEFY-P08NMAU-E3",null,null,"PEFY-P08NMAU-E3",null,null,"PAR-U01MEDU-K",null,"CMB-P106NU-G1",null,"11","P264(Twin)","P240(Twin)","P240(Twin)",null,"P144"]
[12,62,"EB-50GU-A",null,null,212,null,"PEFY-P08NMSU-ER2-TH",null,null,"PEFY-P08NMSU-ER2-TH",null,null,"PAR-W21MAA",null,"CMB-P108NU-G",null,null,"P288(Twin)","P264(Twin)","P264(Twin)",null,"P168"]
[13,63,"TC-24A",null,null,213,null,"PEFY-P12NMAU-E3",null,null,"PEFY-P12NMAU-E3",null,null,"PAR-FA32MA",null,"CMB-P108NU-G1",null,null,"P312(Twin)","P288(Twin)","P288(Twin)",null,"P192(Twin)"]
[14,64,"G-50",null,null,214,null,"PEFY-P12NMSU-ER2-TH",null,null,"PEFY-P12NMSU-ER2-TH",null,null,"PAR-FL32MA",null,"CMB-P1010NU-G",null,null,"P336(Twin)","P312(Twin)","P312(Twin)",null,"P216(Twin)"]
[15,65,"GB-24A",null,null,215,null,"PEFY-P15NMAU-E3",null,null,"PEFY-P15NMAU-E3",null,null,"RCMKP1CB",null,"CMB-P1010NU-G1",null,null,"P360(Twin)","P336(Twin)","P336(Twin)",null,"P240(Twin)"]
[16,66,"GB-50A",null,null,216,null,"PEFY-P15NMHU-E2",null,null,"PEFY-P15NMHU-E2",null,null,"PAC-YT51CRA",null,"CMB-P1013NU-G",null,null,null,"P360(Twin)","P360(Twin)",null,"P264(Twin)"]
[17,67,"GB-50ADA",null,null,217,null,"PEFY-P15NMSU-ER2-TH",null,null,"PEFY-P15NMSU-ER2-TH",null,null,"PAC-YT51CRB",null,"CMB-P1013NU-G1",null,null,"P72",null,"P384(Twin)",null,"P288(Twin)"]
[18,68,"PAC-TG60MCA-J",null,null,218,null,"PEFY-P18NMAU-E3",null,null,"PEFY-P18NMAU-E3",null,null,"PAR-21MAAU",null,"CMB-P1016NU-G",null,null,"P96",null,"P408(Twin)",null,"P312(Twin)"]
[19,69,"PAC-TG63MCA",null,null,219,null,"PEFY-P18NMHU-E2",null,null,"PEFY-P18NMHU-E2",null,null,"PAR-30MAAU",null,"CMB-P1016NU-G1",null,null,"P120",null,"P432(Twin)",null,"P336(Twin)"]
[20,70,"PAC-TG66DCA",null,null,220,null,"PEFY-P18NMSU-ER2-TH",null,null,"PEFY-P18NMSU-ER2-TH",null,null,"PAR-31MAA-J",null,"CMB-P108NU-GA",null,null,"P144",null,null,null,"P360(Twin)"]
[21,71,"PAC-US444CN-1",null,null,221,null,"PEFY-P24NMAU-E3",null,null,"PEFY-P24NMAU-E3",null,null,"PAR-33MAA-J",null,"CMB-P108NU-HA1",null,null,"P168",null,"Over 100ft"]
[22,72,"PAC-WHS01UP-E",null,null,222,null,"PEFY-P24NMHU-E2",null,null,"PEFY-P24NMHU-E2",null,null,"PAR-F27MEA",null,"CMB-P1010NU-GA",null,null,"P192(Twin)",null,"P72",null,"P72"]
[23,73,"AHA-01-A",null,null,223,null,"PEFY-P24NMSU-ER2-TH",null,null,"PEFY-P24NMSU-ER2-TH",null,null,"PAR-U01MEDU-J",null,"CMB-P1010NU-HA1",null,null,"P216(Twin)",null,"P96",null,"P96"]
[24,74,"AHA-02-A",null,null,224,null,"PEFY-P27NMAU-E3",null,null,"PEFY-P27NMAU-E3",null,null,"PZ-43SMF-E",null,"CMB-P1013NU-GA",null,null,"P240(Twin)",null,"P120",null,"P120"]
[25,75,"AHA-03-A",null,null,225,null,"PEFY-P27NMHU-E2",null,null,"PEFY-P27NMHU-E2",null,null,"PZ-60DR",null,"CMB-P1013NU-GA1",null,null,"P264(Twin)",null,"P144",null,"P144"]
[26,76,"AHA-04-A",null,null,226,null,"PEFY-P30NMAU-E3",null,null,"PEFY-P30NMAU-E3",null,null,"PZ-61DR-E",null,"CMB-P1016NU-GA",null,null,"P288(Twin)",null,"P168",null,"P168"]
[27,77,"AHA-04-B",null,null,227,null,"PEFY-P30NMHU-E2",null,null,"PEFY-P30NMHU-E2",null,null,"PZ-41SLB",null,"CMB-P1016NU-HA",null,null,"P312(Twin)",null,"P192",null,"P192"]
[28,78,"DC-A210",null,null,228,null,"PEFY-P36NMAU-E3",null,null,"PEFY-P36NMAU-E3",null,null,"PZ-52SF",null,"CMB-P1016NU-HA1",null,null,"P336(Twin)",null,"P216",null,"P216"]
[29,79,"BAC-HD150",null,null,229,null,"PEFY-P36NMHU-E2",null,null,"PEFY-P36NMHU-E2",null,null,"PAC-US444CN-1",null,"CMB-P104NU-GB",null,null,"P360(Twin)",null,"P240",null,"P240"]
[30,80,"MelcoBEMS-MINI",null,null,230,null,"PEFY-P48NMAU-E3",null,null,"PEFY-P48NMAU-E3",null,null,"MHK1",null,"CMB-P104NU-GB1",null,null,null,null,"P192(Twin)",null,"P264(Twin)"]
[31,81,"MelcoRETAIL-MINI",null,null,231,null,"PEFY-P48NMHU-E2",null,null,"PEFY-P48NMHU-E2",null,null,"MHK2",null,"CMB-P108NU-GB",null,null,null,null,"P216(Twin)",null,"P288(Twin)"]
[32,82,"MAC-333IF-E",null,null,232,null,"PEFY-P54NMAU-E3",null,null,"PEFY-P54NMAU-E3",null,null,null,null,"CMB-P108NU-GB1",null,null,null,null,"P240(Twin)",null,"P312(Twin)"]
[33,83,"RMF-CA100",null,null,233,null,"PEFY-P54NMHU-E2",null,null,"PEFY-P54NMHU-E2",null,null,null,null,"CMB-P1016NU-HB",null,null,null,null,"P264(Twin)",null,"P336(Twin)"]
[34,84,"PAC-US444CN-1",null,null,234,null,"PEFY-P72NMHSU-E",null,null,"PEFY-P72NMHSU-E",null,null,null,null,"CMB-P1016NU-HB1",null,null,null,null,"P288(Twin)",null,"P360(Twin)"]
[35,85,null,null,null,235,null,"PEFY-P96NMHSU-E",null,null,"PEFY-P96NMHSU-E",null,null,null,null,"CMB-P104NU-J1",null,null,null,null,"P312(Twin)"]
[36,86,null,null,null,236,null,"PFFY-P06NEMU-E",null,null,"PFFY-P06NEMU-E",null,null,null,null,"CMB-P106NU-J1",null,null,null,null,"P336(Twin)"]
[37,87,null,null,null,237,null,"PFFY-P06NRMU-E",null,null,"PFFY-P06NRMU-E",null,null,null,null,"CMB-P108NU-J1",null,null,null,null,"P360(Twin)"]
[38,88,null,null,null,238,null,"PFFY-P08NEMU-E",null,null,"PFFY-P08NEMU-E",null,null,null,null,"CMB-P1012NU-J1",null,null,null,null,"P384(Twin)"]
[39,89,null,null,null,239,null,"PFFY-P08NRMU-E",null,null,"PFFY-P08NRMU-E",null,null,null,null,"CMB-P1016NU-J1",null,null,null,null,"P408(Twin)"]
[40,90,null,null,null,240,null,"PFFY-P12NEMU-E",null,null,"PFFY-P12NEMU-E",null,null,null,null,"CMB-P108NU-JA1",null,null,null,null,"P432(Twin)"]
[41,91,null,null,null,241,null,"PFFY-P12NRMU-E",null,null,"PFFY-P12NRMU-E",null,null,null,null,"CMB-P1012NU-JA1"]
[42,92,null,null,null,242,null,"PFFY-P15NEMU-E",null,null,"PFFY-P15NEMU-E",null,null,null,null,"CMB-P1016NU-JA1"]
[43,93,null,null,null,243,null,"PFFY-P15NRMU-E",null,null,"PFFY-P15NRMU-E",null,null,null,null,"CMB-P1016NU-KA1"]
[44,94,null,null,null,244,null,"PFFY-P18NEMU-E",null,null,"PFFY-P18NEMU-E",null,null,null,null,"CMB-P104NU-KB1"]
[45,95,null,null,null,245,null,"PFFY-P18NRMU-E",null,null,"PFFY-P18NRMU-E",null,null,null,null,"CMB-P108NU-KB1"]
[46,96,null,null,null,246,null,"PFFY-P24NEMU-E",null,null,"PFFY-P24NEMU-E",null,null,null,null,"CMB-WP108NU-AA"]
[47,97,null,null,null,247,null,"PFFY-P24NRMU-E",null,null,"PFFY-P24NRMU-E",null,null,null,null,"CMB-WP1016NU-AA"]
[48,98,null,null,null,248,null,"PKFY-P06NBMU-E2R1",null,null,"PKFY-P06NBMU-E2R1",null,null,null,null,"CMB-WP108NU-AB"]
[49,99,null,null,null,249,null,"PKFY-P08NHMU-E2",null,null,"PKFY-P08NHMU-E2",null,null,null,null,"CMB-WP1016NU-AB"]
[50,101,null,null,null,250,null,"PKFY-P100VKM-ER1-TH",null,null,"PKFY-P100VKM-ER1-TH"]
[null,102,null,null,null,null,null,"PKFY-P12NHMU-E2",null,null,"PKFY-P12NHMU-E2"]
[null,103,null,null,null,null,null,"PKFY-P15NHMU-E2",null,null,"PKFY-P15NHMU-E2"]
[null,104,null,null,null,null,null,"PKFY-P18NHMU-E2",null,null,"PKFY-P18NHMU-E2"]
[null,105,null,null,null,null,null,"PKFY-P24NKMU-E2-TH",null,null,"PKFY-P24NKMU-E2-TH"]
[null,106,null,null,null,null,null,"PKFY-P30NKMU-E2-TH",null,null,"PKFY-P30NKMU-E2-TH"]
[null,107,null,null,null,null,null,"PLFY-EP06NEMU-E",null,null,"PKFY-P04NLMU-E"]
[null,108,null,null,null,null,null,"PLFY-EP08NEMU-E",null,null,"PKFY-P06NLMU-E"]
[null,109,null,null,null,null,null,"PLFY-EP12NEMU-E",null,null,"PKFY-P08NLMU-E"]
[null,110,null,null,null,null,null,"PLFY-EP15NEMU-E",null,null,"PKFY-P12NLMU-E"]
[null,111,null,null,null,null,null,"PLFY-EP18NEMU-E",null,null,"PKFY-P15NLMU-E"]
[null,112,null,null,null,null,null,"PLFY-EP18NEMU-E1",null,null,"PKFY-P18NLMU-E"]
[null,113,null,null,null,null,null,"PLFY-EP24NEMU-E",null,null,"PLFY-EP06NEMU-E"]
[null,114,null,null,null,null,null,"PLFY-EP30NEMU-E",null,null,"PLFY-EP08NEMU-E"]
[null,115,null,null,null,null,null,"PLFY-EP36NEMU-E",null,null,"PLFY-EP12NEMU-E"]
[null,116,null,null,null,null,null,"PLFY-EP48NEMU-E",null,null,"PLFY-EP15NEMU-E"]
[null,117,null,null,null,null,null,"PLFY-P05NFMU-E-TH",null,null,"PLFY-EP18NEMU-E"]
[null,118,null,null,null,null,null,"PLFY-P08NFMU-E-TH",null,null,"PLFY-EP18NEMU-E1"]
[null,119,null,null,null,null,null,"PLFY-P12NCMU-ER4-TH",null,null,"PLFY-EP24NEMU-E"]
[null,120,null,null,null,null,null,"PLFY-P12NFMU-E-TH",null,null,"PLFY-EP30NEMU-E"]
[null,121,null,null,null,null,null,"PLFY-P15NFMU-E-TH",null,null,"PLFY-EP36NEMU-E"]
[null,122,null,null,null,null,null,"PLFY-P18NFMU-E-TH",null,null,"PLFY-EP48NEMU-E"]
[null,123,null,null,null,null,null,"PMFY-P06NBMU-ER5",null,null,"PLFY-P05NFMU-E-TH"]
[null,124,null,null,null,null,null,"PMFY-P08NBMU-ER5",null,null,"PLFY-P08NFMU-E-TH"]
[null,125,null,null,null,null,null,"PMFY-P12NBMU-ER5",null,null,"PLFY-P12NCMU-ER4-TH"]
[null,126,null,null,null,null,null,"PMFY-P15NBMU-ER5",null,null,"PLFY-P12NFMU-E-TH"]
[null,127,null,null,null,null,null,"PQHY-P120TLMU-A1",null,null,"PLFY-P15NFMU-E-TH"]
[null,128,null,null,null,null,null,"PQHY-P120YLMU-A1",null,null,"PLFY-P18NFMU-E-TH"]
[null,129,null,null,null,null,null,"PQHY-P120ZLMU-A1",null,null,"PMFY-P06NBMU-ER5"]
[null,130,null,null,null,null,null,"PQHY-P144TLMU-A",null,null,"PMFY-P08NBMU-ER5"]
[null,131,null,null,null,null,null,"PQHY-P144TLMU-A1",null,null,"PMFY-P12NBMU-ER5"]
[null,132,null,null,null,null,null,"PQHY-P144YLMU-A1",null,null,"PMFY-P15NBMU-ER5"]
[null,133,null,null,null,null,null,"PQHY-P144ZLMU-A1",null,null,"PVFY-P12NAMU-E1"]
[null,134,null,null,null,null,null,"PQHY-P168TLMU-A1",null,null,"PVFY-P18NAMU-E1"]
[null,135,null,null,null,null,null,"PQHY-P168YLMU-A1",null,null,"PVFY-P24NAMU-E1"]
[null,136,null,null,null,null,null,"PQHY-P168ZLMU-A",null,null,"PVFY-P30NAMU-E1"]
[null,137,null,null,null,null,null,"PQHY-P168ZLMU-A1",null,null,"PVFY-P36NAMU-E1"]
[null,138,null,null,null,null,null,"PQHY-P192TLMU-A",null,null,"PVFY-P48NAMU-E1"]
[null,139,null,null,null,null,null,"PQHY-P192TLMU-A1",null,null,"PVFY-P54NAMU-E1"]
[null,140,null,null,null,null,null,"PQHY-P192YLMU-A1",null,null,"LGH-F300RX5-E1"]
[null,141,null,null,null,null,null,"PQHY-P192ZLMU-A1",null,null,"LGH-F470RX5-E1"]
[null,142,null,null,null,null,null,"PQHY-P216TLMU-A1",null,null,"LGH-F600RX5-E1"]
[null,143,null,null,null,null,null,"PQHY-P216YLMU-A1",null,null,"LGH-F1200RX5-E1"]
[null,144,null,null,null,null,null,"PQHY-P240TLMU-A1",null,null,"LGH-F300RVX-E"]
[null,145,null,null,null,null,null,"PQHY-P240YLMU-A1",null,null,"LGH-F470RVX-E"]
[null,146,null,null,null,null,null,"PQHY-P72TLMU-A",null,null,"LGH-F600RVX-E"]
[null,147,null,null,null,null,null,"PQHY-P72TLMU-A1",null,null,"LGH-F1200RVX-E"]
[null,148,null,null,null,null,null,"PQHY-P72YLMU-A1",null,null,"PAC-AH10A-G"]
[null,149,null,null,null,null,null,"PQHY-P72ZLMU-A1",null,null,"PAC-AH63M-G"]
[null,150,null,null,null,null,null,"PQHY-P96THMU-A",null,null,"PAC-AH125M-G"]
[null,151,null,null,null,null,null,"PQHY-P96TLMU-A",null,null,"PAC-AH140M-G"]
[null,152,null,null,null,null,null,"PQHY-P96TLMU-A1",null,null,"PAC-AH250M-G"]
[null,153,null,null,null,null,null,"PQHY-P96YLMU-A1",null,null,"PAC-AH125M-H"]
[null,154,null,null,null,null,null,"PQHY-P96ZLMU-A1",null,null,"PAC-AH140M-H"]
[null,155,null,null,null,null,null,"PQHY-P72ZKMU-A",null,null,"PAC-AH250M-H"]
[null,156,null,null,null,null,null,"PQHY-P96ZKMU-A",null,null,"PAC-AH125M-J"]
[null,157,null,null,null,null,null,"PQHY-P120ZKMU-A",null,null,"PAC-AH140M-J"]
[null,158,null,null,null,null,null,"PQRY-P72ZKMU-A",null,null,"PAC-AH250M-J"]
[null,159,null,null,null,null,null,"PQRY-P96ZKMU-A",null,null,"PAC-AH500M-J"]
[null,160,null,null,null,null,null,"PQRY-P120ZKMU-A",null,null,"PWFY-P36NMU-E2-AU"]
[null,161,null,null,null,null,null,"PQRY-P120TLMU-A",null,null,"PWFY-P36NMU-E-BU"]
[null,162,null,null,null,null,null,"PQRY-P120TLMU-A1",null,null,"PWFY-P36NMU-E-AU"]
[null,163,null,null,null,null,null,"PQRY-P120YLMU-A1",null,null,"PWFY-P72NMU-E2-AU"]
[null,164,null,null,null,null,null,"PQRY-P120ZKMU-A",null,null,"PWFY-P72NMU-E-AU"]
[null,165,null,null,null,null,null,"PQRY-P120ZLMU-A1",null,null,"PEFY-WLP06NMAU-A"]
[null,166,null,null,null,null,null,"PQRY-P144TLMU-A",null,null,"PEFY-WP08LNMAU-A"]
[null,167,null,null,null,null,null,"PQRY-P144TLMU-A1",null,null,"PEFY-WLP12NMAU-A"]
[null,168,null,null,null,null,null,"PQRY-P144YLMU-A1",null,null,"PEFY-WP15LNMAU-A"]
[null,169,null,null,null,null,null,"PQRY-P144ZLMU-A1",null,null,"PEFY-WLP18NMAU-A"]
[null,170,null,null,null,null,null,"PQRY-P168TLMU-A",null,null,"PEFY-WLP24NMAU-A"]
[null,171,null,null,null,null,null,"PQRY-P168TLMU-A1",null,null,"PEFY-WLP27NMAU-A"]
[null,172,null,null,null,null,null,"PQRY-P168YLMU-A1",null,null,"PEFY-WLP30NMAU-A"]
[null,173,null,null,null,null,null,"PQRY-P168ZLMU-A",null,null,"PEFY-WLP36NMAU-A"]
[null,174,null,null,null,null,null,"PQRY-P168ZLMU-A1",null,null,"PEFY-WLP48NMAU-A"]
[null,175,null,null,null,null,null,"PQRY-P192TLMU-A",null,null,"PKFY-WL04NLMU-E"]
[null,176,null,null,null,null,null,"PQRY-P192TLMU-A1",null,null," PKFY-WL06NLMU-E"]
[null,177,null,null,null,null,null,"PQRY-P192YLMU-A1",null,null," PKFY-WL08NLMU-E"]
[null,178,null,null,null,null,null,"PQRY-P192ZLMU-A1",null,null," PKFY-WL12NLMU-E"]
[null,179,null,null,null,null,null,"PQRY-P216TLMU-A",null,null," PKFY-WL15NLMU-E"]
[null,180,null,null,null,null,null,"PQRY-P216TLMU-A1",null,null,"PLFY-WL06NEMU-E"]
[null,181,null,null,null,null,null,"PQRY-P216YLMU-A1",null,null,"PLFY-WL08NEMU-E"]
[null,182,null,null,null,null,null,"PQRY-P240TLMU-A",null,null,"PLFY-WL12NEMU-E"]
[null,183,null,null,null,null,null,"PQRY-P240TLMU-A1",null,null,"PLFY-WL15NEMU-E"]
[null,184,null,null,null,null,null,"PQRY-P240YLMU-A1",null,null,"PLFY-WL18NEMU-E"]
[null,185,null,null,null,null,null,"PQRY-P72THMU-A",null,null,"PLFY-WL24NEMU-E"]
[null,186,null,null,null,null,null,"PQRY-P72TLMU-A",null,null,"PLFY-WL30NEMU-E"]
[null,187,null,null,null,null,null,"PQRY-P72TLMU-A1",null,null,"PLFY-WL36NEMU-E"]
[null,188,null,null,null,null,null,"PQRY-P72YLMU-A1",null,null,"PLFY-WL48NEMU-E"]
[null,189,null,null,null,null,null,"PQRY-P72ZLMU-A",null,null,"PLFY-WL04NFMU-E"]
[null,190,null,null,null,null,null,"PQRY-P72ZLMU-A1",null,null,"PLFY-WL06NFMU-E"]
[null,191,null,null,null,null,null,"PQRY-P96THMU-A",null,null,"PLFY-WL08NFMU-E"]
[null,192,null,null,null,null,null,"PQRY-P96TLMU-A",null,null,"PLFY-WL12NFMU-E"]
[null,193,null,null,null,null,null,"PQRY-P96TLMU-A1",null,null,"PLFY-WL15NFMU-E"]
[null,194,null,null,null,null,null,"PQRY-P96YLMU-A1"]
[null,195,null,null,null,null,null,"PQRY-P96ZLMU-A"]
[null,196,null,null,null,null,null,"PQRY-P96ZLMU-A1"]
[null,197,null,null,null,null,null,"PUHY-HP72TJMU-A"]
[null,198,null,null,null,null,null,"PUHY-HP72TJMU-A-BS"]
[null,199,null,null,null,null,null,"PUHY-HP96TJMU-A"]
[null,null,null,null,null,null,null,"PUHY-HP96TJMU-A-BS"]
[null,null,null,null,null,null,null,"PUHY-P120TKMU-A"]
[null,null,null,null,null,null,null,"PUHY-P120TKMU-A-BS"]
[null,null,null,null,null,null,null,"PUHY-P120TLMU-A"]
[null,null,null,null,null,null,null,"PUHY-P120YKMU-A-BS"]
[null,null,null,null,null,null,null,"PUHY-P120ZKMU-A"]
[null,null,null,null,null,null,null,"PUHY-P120ZKMU-A-BS"]
[null,null,null,null,null,null,null,"PUHY-P144TKMU-A"]
[null,null,null,null,null,null,null,"PUHY-P144TKMU-A-BS"]
[null,null,null,null,null,null,null,"PUHY-P144TLMU-A"]
[null,null,null,null,null,null,null,"PUHY-P144YKMU-A"]
[null,null,null,null,null,null,null,"PUHY-P144YKMU-A-BS"]
[null,null,null,null,null,null,null,"PUHY-P144ZKMU-A"]
[null,null,null,null,null,null,null,"PUHY-P144ZKMU-A-BS"]
[null,null,null,null,null,null,null,"PUHY-P168TLMU-A"]
[null,null,null,null,null,null,null,"PUHY-P72TKMU-A"]
[null,null,null,null,null,null,null,"PUHY-P72TKMU-A-BS"]
[null,null,null,null,null,null,null,"PUHY-P72TLMU-A"]
[null,null,null,null,null,null,null,"PUHY-P72YKMU-A"]
[null,null,null,null,null,null,null,"PUHY-P72YKMU-A-BS"]
[null,null,null,null,null,null,null,"PUHY-P72ZKMU-A"]
[null,null,null,null,null,null,null,"PUHY-P72ZKMU-A-BS"]
[null,null,null,null,null,null,null,"PUHY-P96TKMU-A"]
[null,null,null,null,null,null,null,"PUHY-P96TKMU-A-BS"]
[null,null,null,null,null,null,null,"PUHY-P96TLMU-A"]
[null,null,null,null,null,null,null,"PUHY-P96YKMU-A"]
[null,null,null,null,null,null,null,"PUHY-P96YKMU-A-BS"]
[null,null,null,null,null,null,null,"PUHY-P96ZKMU-A"]
[null,null,null,null,null,null,null,"PUHY-P96ZKMU-A-BS"]
[null,null,null,null,null,null,null,"PUHY-P120TNU-A"]
[null,null,null,null,null,null,null,"PUHY-P120TNU-A-BS"]
[null,null,null,null,null,null,null,"PUHY-P120YNU-A"]
[null,null,null,null,null,null,null,"PUHY-EP120TNU-A"]
[null,null,null,null,null,null,null,"PUHY-EP120YNU-A"]
[null,null,null,null,null,null,null,"PUHY-EP144TNU-A"]
[null,null,null,null,null,null,null,"PUHY-EP144YNU-A"]
[null,null,null,null,null,null,null,"PUHY-EP168TNU-A"]
[null,null,null,null,null,null,null,"PUHY-EP168YNU-A"]
[null,null,null,null,null,null,null,"PUHY-EP72TNU-A"]
[null,null,null,null,null,null,null,"PUHY-EP72YNU-A"]
[null,null,null,null,null,null,null,"PUHY-EP96TNU-A"]
[null,null,null,null,null,null,null,"PUHY-EP96YNU-A"]
[null,null,null,null,null,null,null,"PUHY-P144TNU-A"]
[null,null,null,null,null,null,null,"PUHY-P144TNU-A-BS"]
[null,null,null,null,null,null,null,"PUHY-P144YNU-A"]
[null,null,null,null,null,null,null,"PUHY-P168TNU-A"]
[null,null,null,null,null,null,null,"PUHY-P168TNU-A-BS"]
[null,null,null,null,null,null,null,"PUHY-P168YNU-A"]
[null,null,null,null,null,null,null,"PUHY-P72TNU-A"]
[null,null,null,null,null,null,null,"PUHY-P72TNU-A-BS"]
[null,null,null,null,null,null,null,"PUHY-P72YNU-A"]
[null,null,null,null,null,null,null,"PUHY-P96TNU-A"]
[null,null,null,null,null,null,null,"PUHY-P96TNU-A-BS"]
[null,null,null,null,null,null,null,"PUHY-P96YNU-A"]
[null,null,null,null,null,null,null,"PUHY-P216TNU-A"]
[null,null,null,null,null,null,null,"PUHY-P216TNU-A-BS"]
[null,null,null,null,null,null,null,"PUHY-P216YNU-A"]
[null,null,null,null,null,null,null,"PUHY-P240TNU-A"]
[null,null,null,null,null,null,null,"PUHY-P240TNU-A-BS"]
[null,null,null,null,null,null,null,"PUHY-P240YNU-A"]
[null,null,null,null,null,null,null,"PUHY-HP120TNU-A"]
[null,null,null,null,null,null,null,"PUHY-HP120TNU-A-BS"]
[null,null,null,null,null,null,null,"PUHY-HP120YNU-A"]
[null,null,null,null,null,null,null,"PUHY-HP72TNU-A"]
[null,null,null,null,null,null,null,"PUHY-HP72TNU-A-BS"]
[null,null,null,null,null,null,null,"PUHY-HP72YNU-A"]
[null,null,null,null,null,null,null,"PUHY-HP96TNU-A"]
[null,null,null,null,null,null,null,"PUHY-HP96TNU-A-BS"]
[null,null,null,null,null,null,null,"PUHY-HP96YNU-A"]
[null,null,null,null,null,null,null,"PUMY-HP36NKMU"]
[null,null,null,null,null,null,null,"PUMY-HP48NKMU"]
[null,null,null,null,null,null,null,"PUMY-P36NKMU1"]
[null,null,null,null,null,null,null,"PUMY-P36NKMU2"]
[null,null,null,null,null,null,null,"PUMY-P36NKMU2-BS"]
[null,null,null,null,null,null,null,"PUMY-P48NKMU1"]
[null,null,null,null,null,null,null,"PUMY-P48NKMU2"]
[null,null,null,null,null,null,null,"PUMY-P48NKMU2-BS"]
[null,null,null,null,null,null,null,"PUMY-P60NKMU1"]
[null,null,null,null,null,null,null,"PUMY-P60NKMU2"]
[null,null,null,null,null,null,null,"PUMY-P60NKMU2-BS"]
[null,null,null,null,null,null,null,"PUMY-P36NKMU3"]
[null,null,null,null,null,null,null,"PUMY-P48NKMU3"]
[null,null,null,null,null,null,null,"PUMY-P60NKMU3"]
[null,null,null,null,null,null,null,"PUMY-HP48NKMU1"]
[null,null,null,null,null,null,null,"PUMY-HP36NKMU1"]
[null,null,null,null,null,null,null,"PURY-EP120TNU-A"]
[null,null,null,null,null,null,null,"PURY-EP120YNU-A"]
[null,null,null,null,null,null,null,"PURY-EP144TNU-A"]
[null,null,null,null,null,null,null,"PURY-EP144YNU-A"]
[null,null,null,null,null,null,null,"PURY-EP168TNU-A"]
[null,null,null,null,null,null,null,"PURY-EP168YNU-A"]
[null,null,null,null,null,null,null,"PURY-EP72TNU-A"]
[null,null,null,null,null,null,null,"PURY-EP72YNU-A"]
[null,null,null,null,null,null,null,"PURY-EP96TNU-A"]
[null,null,null,null,null,null,null,"PURY-EP96YNU-A"]
[null,null,null,null,null,null,null,"PURY-HP120TNU-A"]
[null,null,null,null,null,null,null,"PURY-HP120TNU-A-BS"]
[null,null,null,null,null,null,null,"PURY-HP120YNU-A"]
[null,null,null,null,null,null,null,"PURY-HP72TNU-A"]
[null,null,null,null,null,null,null,"PURY-HP72TNU-A-BS"]
[null,null,null,null,null,null,null,"PURY-HP72YNU-A"]
[null,null,null,null,null,null,null,"PURY-HP96TNU-A"]
[null,null,null,null,null,null,null,"PURY-HP96TNU-A-BS"]
[null,null,null,null,null,null,null,"PURY-HP96YNU-A"]
[null,null,null,null,null,null,null,"PURY-HP72TKMU-A-H"]
[null,null,null,null,null,null,null,"PURY-HP72TKMU-A-H-BS"]
[null,null,null,null,null,null,null,"PURY-HP72YKMU-A-H"]
[null,null,null,null,null,null,null,"PURY-HP96TKMU-A-H"]
[null,null,null,null,null,null,null,"PURY-HP96TKMU-A-H-BS"]
[null,null,null,null,null,null,null,"PURY-HP96YKMU-A-H"]
[null,null,null,null,null,null,null,"PURY-P120TKMU-A"]
[null,null,null,null,null,null,null,"PURY-P120TKMU-A-BS"]
[null,null,null,null,null,null,null,"PURY-P120TLMU-A"]
[null,null,null,null,null,null,null,"PURY-P120TLMU-A-BS"]
[null,null,null,null,null,null,null,"PURY-P120TNU-A"]
[null,null,null,null,null,null,null,"PURY-P120TNU-A-BS"]
[null,null,null,null,null,null,null,"PURY-P120YKMU-A"]
[null,null,null,null,null,null,null,"PURY-P120YKMU-A-BS"]
[null,null,null,null,null,null,null,"PURY-P120YNU-A"]
[null,null,null,null,null,null,null,"PURY-P120ZKMU-A"]
[null,null,null,null,null,null,null,"PURY-P120ZKMU-A-BS"]
[null,null,null,null,null,null,null,"PURY-P144TKMU-A"]
[null,null,null,null,null,null,null,"PURY-P144TKMU-A-BS"]
[null,null,null,null,null,null,null,"PURY-P144TLMU-A"]
[null,null,null,null,null,null,null,"PURY-P144TNU-A"]
[null,null,null,null,null,null,null,"PURY-P144TNU-A-BS"]
[null,null,null,null,null,null,null,"PURY-P144YKMU-A"]
[null,null,null,null,null,null,null,"PURY-P144YKMU-A-BS"]
[null,null,null,null,null,null,null,"PURY-P144YNU-A"]
[null,null,null,null,null,null,null,"PURY-P144ZKMU-A"]
[null,null,null,null,null,null,null,"PURY-P144ZKMU-A-BS"]
[null,null,null,null,null,null,null,"PURY-P168TLMU-A"]
[null,null,null,null,null,null,null,"PURY-P168TNU-A"]
[null,null,null,null,null,null,null,"PURY-P168TNU-A-BS"]
[null,null,null,null,null,null,null,"PURY-P168YNU-A"]
[null,null,null,null,null,null,null,"PURY-P72TKMU-A"]
[null,null,null,null,null,null,null,"PURY-P72TKMU-A-BS"]
[null,null,null,null,null,null,null,"PURY-P72TLMU-A"]
[null,null,null,null,null,null,null,"PURY-P72TNU-A"]
[null,null,null,null,null,null,null,"PURY-P72TNU-A-BS"]
[null,null,null,null,null,null,null,"PURY-P72YKMU-A"]
[null,null,null,null,null,null,null,"PURY-P72YNU-A"]
[null,null,null,null,null,null,null,"PURY-P72ZKMU-A"]
[null,null,null,null,null,null,null,"PURY-P72ZKMU-A-BS"]
[null,null,null,null,null,null,null,"PURY-P96TKMU-A"]
[null,null,null,null,null,null,null,"PURY-P96TKMU-A-BS"]
[null,null,null,null,null,null,null,"PURY-P96TLMU-A"]
[null,null,null,null,null,null,null,"PURY-P96TNU-A"]
[null,null,null,null,null,null,null,"PURY-P96TNU-A-BS"]
[null,null,null,null,null,null,null,"PURY-P96YKMU-A"]
[null,null,null,null,null,null,null,"PURY-P96YNU-A"]
[null,null,null,null,null,null,null,"PURY-P216TNU-A"]
[null,null,null,null,null,null,null,"PURY-P216TNU-A-BS"]
[null,null,null,null,null,null,null,"PURY-P216YNU-A"]
[null,null,null,null,null,null,null,"PURY-P240TNU-A"]
[null,null,null,null,null,null,null,"PURY-P240TNU-A-BS"]
[null,null,null,null,null,null,null,"PURY-P240YNU-A"]
[null,null,null,null,null,null,null,"PURY-P96ZKMU-A"]
[null,null,null,null,null,null,null,"PURY-P96ZKMU-A-BS"]
[null,null,null,null,null,null,null,"CAHV-P500YA-HPB"]
[null,null,null,null,null,null,null,"CAHV-P500YA-HPB-BS"]
[null,null,null,null,null,null,null,"CAHV-P500YB-HPB"]
[null,null,null,null,null,null,null,"CAHV-P500YB-HPB-BS"]
[null,null,null,null,null,null,null,"PVFY-P12NAMU-E1"]
[null,null,null,null,null,null,null,"PVFY-P18NAMU-E1"]
[null,null,null,null,null,null,null,"PVFY-P24NAMU-E1"]
[null,null,null,null,null,null,null,"PVFY-P30NAMU-E1"]
[null,null,null,null,null,null,null,"PVFY-P36NAMU-E1"]
[null,null,null,null,null,null,null,"PVFY-P48NAMU-E1"]
[null,null,null,null,null,null,null,"PVFY-P54NAMU-E1"]
[null,null,null,null,null,null,null,"PAC-AH10A-G"]
[null,null,null,null,null,null,null,"PAC-AH63M-G"]
[null,null,null,null,null,null,null,"PAC-AH125M-G"]
[null,null,null,null,null,null,null,"PAC-AH140M-G"]
[null,null,null,null,null,null,null,"PAC-AH250M-G"]
[null,null,null,null,null,null,null,"PAC-AH125M-H"]
[null,null,null,null,null,null,null,"PAC-AH140M-H"]
[null,null,null,null,null,null,null,"PAC-AH250M-H"]
[null,null,null,null,null,null,null,"PAC-AH125M-J"]
[null,null,null,null,null,null,null,"PAC-AH140M-J"]
[null,null,null,null,null,null,null,"PAC-AH250M-J"]
[null,null,null,null,null,null,null,"PAC-AH500M-J"]